bitfinex/quotes_ETHUSD_20250425
["timestamp","ask_amount","ask_price","bid_price","bid_amount"]
[1745550169160,1.68637741,1744.7,1744.6,7.78621838]
[1745550169363,1.3726393,1744.7,1744.6,7.78621838]
[1745550169560,0.85014556,1744.7,1744.6,7.78621838]
[1745550170890,0.85014556,1744.7,1744.6,10.78621838]
[1745550173596,0.83960796,1745.2,1745.1,5.73033064]
[1745550173970,5.534,1745.4,1745.1,5.73033064]
[1745550173971,0.83960796,1745.3,1745.1,11.46066128]
[1745550174303,0.83960796,1745.3,1745.0,5.73049618]
[1745550174599,0.83960796,1745.3,1745.2,5.73000229]
[1745550175934,0.3150157,1745.3,1745.2,5.73000229]
[1745550176081,0.3150157,1745.5,1745.4,5.7293457]
[1745550176411,0.83960796,1745.5,1745.4,5.7293457]
[1745550176619,0.83960796,1745.5,1745.4,6.87523975]
[1745550176967,0.83960796,1745.6,1745.5,5.72901747]
[1745550177602,0.83960796,1745.6,1745.5,6.48501747]
[1745550177821,0.4105,1746.2,1746.0,5.72710106]
[1745550177998,4.0,1746.1,1746.0,5.72710106]
[1745550178317,0.4105,1746.2,1745.9,5.72743764]
[1745550178524,5.9435,1746.4,1745.9,1.32874376]
[1745550178688,5.9435,1746.4,1745.9,6.48343813]
[1745550178886,5.9435,1746.4,1746.0,5.72709841]
[1745550179084,0.4105,1746.4,1745.9,0.756]
[1745550179289,0.4105,1746.4,1746.1,5.72681753]
[1745550179485,0.4105,1746.4,1746.0,5.72723412]
[1745550179797,0.4105,1746.4,1746.0,11.45433465]
[1745550180179,0.4105,1746.4,1745.9,6.48358516]
[1745550180483,5.9425,1746.6,1746.0,5.72717306]
[1745550180685,4.1949755,1746.5,1745.7,0.756]
[1745550180888,0.4105,1746.4,1745.7,5.72805285]
[1745550181088,0.4105,1746.2,1745.5,6.484893]
[1745550181285,3.0,1746.1,1745.5,0.756]
[1745550181488,0.3,1746.0,1745.5,5.72886154]
[1745550182314,0.4105,1745.9,1745.5,5.72886154]
[1745550182615,5.531,1745.8,1745.2,11.45951557]
[1745550182788,5.531,1745.8,1745.2,5.7297573]
[1745550183108,0.4105,1745.7,1745.1,6.55336541]
[1745550183413,0.4105,1745.7,1745.1,11.46026062]
[1745550183582,0.4105,1745.7,1745.2,5.72998582]
[1745550183784,0.4105,1745.7,1745.2,11.45976505]
[1745550183984,0.4105,1745.7,1745.2,5.72977923]
[1745550184481,0.4105,1745.7,1745.3,5.72938755]
[1745550185089,0.4105,1745.7,1745.4,5.72920012]
[1745550185276,0.4105,1745.7,1745.4,5.72912269]
[1745550185911,0.4105,1745.7,1745.5,5.72893207]
[1745550186100,0.4105,1745.9,1745.5,5.72880002]
[1745550186428,0.4105,1746.1,1745.3,6.55192477]
[1745550186582,5.9415,1746.1,1745.7,5.72821716]
[1745550187236,3.4105,1746.1,1745.8,5.72780619]
[1745550187439,0.4105,1746.1,1745.7,6.550448]
[1745550187575,0.4105,1746.1,1745.6,5.72849026]
[1745550187778,0.4105,1746.1,1745.6,11.45689271]
[1745550188008,0.4105,1746.1,1745.9,5.72756302]
[1745550188179,0.4105,1746.3,1745.9,5.72756302]
[1745550188376,5.9415,1746.3,1746.0,5.72730384]
[1745550188581,0.4105,1746.3,1745.9,5.72750063]
[1745550188784,0.4105,1746.3,1746.0,5.72734077]
[1745550189056,3.4105,1746.3,1746.0,5.72734077]
[1745550189407,3.4105,1746.3,1745.9,5.72762548]
[1745550189795,0.4105,1746.3,1746.0,5.72733306]
[1745550190125,0.93480454,1746.3,1745.9,5.72756798]
[1745550190324,0.93480454,1746.3,1745.6,6.87429646]
[1745550190325,0.4105,1746.3,1745.7,5.72815804]
[1745550190484,0.4105,1746.3,1745.7,5.72810248]
[1745550190686,0.4105,1746.3,1745.8,5.72789558]
[1745550191182,1.24932418,1746.3,1745.8,5.72789558]
[1745550192483,0.4105,1746.2,1745.5,5.72886617]
[1745550192685,0.72501964,1746.2,1745.5,5.72875414]
[1745550192901,0.72501964,1746.2,1745.6,5.72852312]
[1745550193223,1.24932418,1746.2,1745.8,5.72798339]
[1745550193421,0.93480454,1746.2,1745.8,5.72778575]
[1745550193623,5.9405,1746.2,1745.8,1.14559926]
[1745550193939,0.4105,1746.2,1745.8,5.72797543]
[1745550194101,5.9405,1746.2,1745.8,5.72797543]
[1745550194716,5.9405,1746.2,1745.4,6.2843]
[1745550195035,0.83920405,1746.1,1745.6,5.72857194]
[1745550195199,0.83920405,1746.1,1745.6,11.45702429]
[1745550195399,0.83920405,1746.1,1745.7,5.72834499]
[1745550196437,0.83920405,1746.1,1745.6,5.72844217]
[1745550196634,0.83920405,1746.1,1745.7,5.72823819]
[1745550196939,0.83920405,1746.1,1745.7,5.72824315]
[1745550197440,0.83920405,1746.1,1745.6,6.30138571]
[1745550197644,0.83920405,1746.1,1745.6,6.30131445]
[1745550197828,0.83920405,1746.1,1745.7,5.72822663]
[1745550198137,0.83920405,1746.1,1745.7,5.72811788]
[1745550198442,0.83920405,1746.1,1745.6,0.57284422]
[1745550198599,0.83920405,1746.1,1745.7,5.72818995]
[1745550198966,1.24970405,1746.1,1745.8,5.7280129]
[1745550199103,0.72501964,1746.1,1745.8,5.7280129]
[1745550199447,0.72501964,1746.1,1745.7,5.72818995]
[1745550199618,0.4105,1746.1,1745.7,5.72810229]
[1745550199812,0.4105,1746.1,1745.8,5.72782749]
[1745550200221,0.4105,1746.1,1745.9,5.72756955]
[1745550200839,0.4105,1746.1,1745.7,5.72811354]
[1745550201053,0.4105,1746.1,1745.9,5.72769745]
[1745550201356,0.4105,1746.1,1745.8,5.72784882]
[1745550201578,0.4105,1746.1,1745.9,5.72755427]
[1745550203161,0.4105,1746.1,1745.9,5.72747184]
[1745550203725,5.31708559,1746.2,1745.9,5.72747184]
[1745550204059,5.31708559,1746.2,1745.9,5.72750559]
[1745550204355,5.527,1746.3,1746.0,5.72705429]
[1745550204562,0.31451964,1746.3,1746.0,5.72705429]
[1745550204729,3.31451964,1746.3,1746.0,11.45431103]
[1745550204913,3.83920405,1746.3,1746.0,5.72705429]
[1745550205118,3.83920405,1746.3,1746.0,11.45417781]
[1745550205448,0.83920405,1746.3,1746.2,5.72672087]
[1745550205751,0.83920405,1746.3,1746.1,5.72674866]
[1745550206318,0.83920405,1746.3,1746.1,5.72703629]
[1745550206636,0.52468441,1746.3,1746.1,5.72703629]
[1745550206817,0.83920405,1746.4,1746.1,5.72703629]
[1745550207051,0.83920405,1746.4,1746.1,5.72680939]
[1745550207249,0.83920405,1746.4,1746.2,5.72668348]
[1745550207664,0.83920405,1746.4,1746.3,5.72639294]
[1745550208158,0.83920405,1746.5,1746.3,5.72639294]
[1745550208363,0.83920405,1746.5,1746.3,5.72615493]
[1745550208547,0.83920405,1746.5,1746.3,5.72615918]
[1745550209353,0.83920405,1746.5,1746.4,5.72606504]
[1745550209820,0.31451964,1746.5,1746.4,5.72606504]
[1745550210024,3.83920405,1746.8,1746.5,5.72565628]
[1745550210671,3.83920405,1746.8,1746.4,5.72606504]
[1745550210966,0.78730637,1746.7,1746.2,6.52513593]
[1745550211127,0.78730637,1746.7,1746.4,5.72603438]
[1745550211332,3.83920405,1746.8,1746.4,11.45168807]
[1745550211567,3.83920405,1746.8,1746.4,5.72584008]
[1745550211771,3.83920405,1746.8,1746.4,11.45166139]
[1745550211919,3.83920405,1746.8,1746.3,5.72621555]
[1745550212120,0.83920405,1746.8,1746.5,5.72569149]
[1745550212361,0.83920405,1746.8,1746.6,5.72538216]
[1745550212568,0.83920405,1746.8,1746.5,5.72556066]
[1745550212721,0.83920405,1746.8,1746.5,5.7255326]
[1745550212916,0.83920405,1746.8,1746.4,5.72591599]
[1745550213120,0.83920405,1746.8,1746.5,5.72551671]
[1745550213321,0.83920405,1746.8,1746.7,5.72508158]
[1745550213560,0.31451964,1746.8,1746.6,5.72539043]
[1745550213765,0.31451964,1746.8,1746.6,5.72518943]
[1745550213924,5.526,1747.0,1746.7,5.72508158]
[1745550214125,0.52673541,1747.0,1746.7,5.72507553]
[1745550214338,0.52673541,1747.0,1746.7,5.72486994]
[1745550214551,0.52673541,1747.0,1746.7,11.44969641]
[1745550214746,0.52673541,1747.0,1746.7,5.72482647]
[1745550215070,0.52673541,1747.0,1746.7,5.72486413]
[1745550215219,0.84125505,1747.0,1746.8,5.72474468]
[1745550215425,0.84125505,1747.0,1746.7,12.10099574]
[1745550215737,0.84125505,1747.0,1746.8,5.72467805]
[1745550216063,0.84125505,1747.0,1746.9,5.72442612]
[1745550216365,0.31451964,1747.0,1746.9,7.65743654]
[1745550217138,0.4038645,1747.2,1747.1,5.72377082]
[1745550218657,0.4038645,1747.2,1747.0,5.72389466]
[1745550218864,0.4038645,1747.2,1747.0,7.06201043]
[1745550219065,0.4038645,1747.2,1747.0,5.72389466]
[1745550219240,0.4038645,1747.2,1746.9,0.7881]
[1745550219241,0.4038645,1747.2,1746.9,6.5123297]
[1745550219456,0.4038645,1747.2,1747.0,5.72394471]
[1745550219657,0.4038645,1747.2,1746.9,11.44849522]
[1745550219866,0.4038645,1747.2,1746.9,5.72419876]
[1745550220059,0.4038645,1747.2,1747.0,5.72407563]
[1745550220443,0.4038645,1747.2,1746.9,5.72420377]
[1745550220765,0.4038645,1747.2,1746.9,5.72437466]
[1745550221170,0.4038645,1747.2,1746.9,5.72418107]
[1745550221330,0.4038645,1747.2,1747.0,5.72409824]
[1745550221865,0.4038645,1747.2,1746.9,6.29665548]
[1745550222234,0.4038645,1747.2,1746.9,0.57241811]
[1745550222439,0.4038645,1747.2,1746.9,6.29678892]
[1745550222739,0.4038645,1747.2,1746.9,6.29681389]
[1745550222964,0.4038645,1747.2,1747.0,5.72402399]
[1745550223753,0.4038645,1747.2,1746.9,6.29659803]
[1745550223950,0.4038645,1747.2,1747.0,5.72397802]
[1745550224153,0.4038645,1747.2,1747.1,5.72377082]
[1745550224774,0.4038645,1747.2,1747.0,6.92595529]
[1745550226494,0.4038645,1747.2,1747.0,12.64984995]
[1745550226776,0.4038645,1747.2,1747.0,6.92595226]
[1745550227550,0.4038645,1747.2,1746.9,6.29671448]
[1745550227973,0.4038645,1747.2,1746.9,12.02092396]
[1745550228156,0.4038645,1747.2,1747.0,5.72408174]
[1745550229567,0.4038645,1747.2,1746.9,6.29662759]
[1745550229888,0.4038645,1747.2,1747.0,5.72404722]
[1745550230385,0.4038645,1747.2,1747.1,5.72377082]
[1745550230551,0.4038645,1747.2,1747.0,5.72388795]
[1745550230748,0.4038645,1747.2,1747.0,6.35351856]
[1745550231451,0.4038645,1747.2,1747.1,5.72377082]
[1745550236490,0.5,1747.4,1747.3,6.48831566]
[1745550236695,0.5,1747.4,1747.3,7.27562203]
[1745550238788,0.5,1747.4,1747.3,6.48831566]
[1745550239108,0.5,1747.4,1747.3,7.70947903]
[1745550250146,0.5,1747.4,1747.3,8.4967854]
[1745550251638,0.84230081,1748.0,1747.9,5.72115109]
[1745550251800,0.84230081,1748.0,1747.6,6.52906004]
[1745550251801,0.31586116,1748.0,1747.6,0.807]
[1745550252009,0.78730637,1748.2,1747.8,5.72141653]
[1745550252403,1.31449207,1748.2,1747.8,5.72141653]
[1745550252630,1.31449207,1748.2,1747.8,5.72136275]
[1745550252834,1.31449207,1748.2,1747.9,5.721139]
[1745550253137,1.63035323,1748.2,1747.8,11.44270056]
[1745550253311,1.63035323,1748.2,1747.8,5.72125745]
[1745550253643,0.84304686,1748.2,1748.0,5.72065537]
[1745550253805,0.84304686,1748.2,1747.9,5.72097592]
[1745550254226,0.31586116,1748.2,1747.9,5.72097592]
[1745550254411,3.5271857,1748.3,1748.1,5.72031834]
[1745550254412,0.84304686,1748.3,1748.1,5.72031834]
[1745550254627,0.84304686,1748.3,1748.1,5.72025162]
[1745550254829,0.31586116,1748.3,1748.2,5.72016931]
[1745550255514,0.84304686,1748.5,1748.4,5.71951498]
[1745550255822,0.84304686,1748.5,1748.2,5.71997258]
[1745550256139,1.10316753,1748.5,1747.9,11.4418315]
[1745550256450,0.78730637,1748.5,1748.0,5.72051249]
[1745550256613,0.78730637,1748.5,1748.1,5.72047912]
[1745550256814,0.78730637,1748.5,1748.0,5.72062689]
[1745550257448,0.78730637,1748.5,1748.0,5.72059017]
[1745550259213,0.78730637,1748.3,1747.8,11.2383225]
[1745550259414,0.78730637,1748.3,1747.9,5.72107761]
[1745550259728,1.10316753,1748.3,1747.8,5.72127105]
[1745550260138,1.10316753,1748.3,1747.7,5.72167874]
[1745550260508,1.10316753,1748.3,1747.8,5.72127799]
[1745550260710,4.10316753,1748.3,1747.6,5.72195796]
[1745550261050,4.10316753,1748.3,1747.4,5.516]
[1745550261051,0.78730637,1748.1,1747.7,5.72176258]
[1745550261345,0.78730637,1748.1,1747.6,5.72193848]
[1745550262218,0.78730637,1748.1,1747.4,5.72268734]
[1745550262442,0.78730637,1748.1,1747.7,5.72163327]
[1745550263253,0.31586116,1748.2,1747.7,1.14437359]
[1745550263412,3.31586116,1748.2,1748.0,5.72069796]
[1745550263615,0.31586116,1748.2,1748.0,5.72059443]
[1745550264012,0.31586116,1748.2,1748.0,5.72067842]
[1745550264351,5.82686116,1748.4,1748.0,5.72067842]
[1745550264529,5.82686116,1748.4,1747.8,5.72128822]
[1745550264727,0.78730637,1748.3,1747.9,5.72114508]
[1745550264925,0.78730637,1748.3,1747.9,11.44208342]
[1745550265235,1.10316753,1748.3,1748.0,5.72079309]
[1745550265435,1.10316753,1748.3,1747.9,5.72094212]
[1745550265645,1.10316753,1748.3,1747.9,11.44188025]
[1745550265952,1.10316753,1748.3,1748.0,5.72080954]
[1745550268148,1.10316753,1748.3,1747.9,5.72112621]
[1745550268349,1.10316753,1748.3,1747.7,1.14437359]
[1745550268350,1.10316753,1748.3,1747.8,5.72128538]
[1745550268514,0.31586116,1748.2,1747.6,5.72194805]
[1745550268919,0.31586116,1748.2,1747.7,5.72169125]
[1745550269256,0.31586116,1748.2,1747.7,5.72161573]
[1745550269748,3.31586116,1748.2,1748.0,5.72081684]
[1745550270118,0.31586116,1748.2,1748.0,5.72081684]
[1745550270346,0.31586116,1748.2,1748.0,5.72061723]
[1745550270644,5.511,1748.3,1747.9,5.72103652]
[1745550270645,0.31586116,1748.3,1747.9,5.72103652]
[1745550271017,0.78730637,1748.2,1747.6,5.72197673]
[1745550271214,0.78730637,1748.2,1747.8,5.72146378]
[1745550271441,1.10316753,1748.2,1747.5,0.8275]
[1745550271656,1.10316753,1748.2,1747.8,5.72126251]
[1745550272149,1.10316753,1748.2,1747.7,5.72163265]
[1745550272352,1.10316753,1748.2,1747.8,5.72127076]
[1745550272549,1.10316753,1748.2,1747.9,5.7211154]
[1745550272753,1.10316753,1748.2,1747.8,5.72130683]
[1745550273252,1.10316753,1748.2,1747.9,5.72107227]
[1745550273453,0.31586116,1748.2,1747.9,5.72091894]
[1745550273657,0.31586116,1748.2,1747.9,1.14422406]
[1745550273863,3.0,1748.3,1748.1,5.72049653]
[1745550273864,3.31586116,1748.3,1748.1,5.72049653]
[1745550274024,3.31586116,1748.3,1748.0,5.72063417]
[1745550274025,0.31586116,1748.3,1748.0,5.72063417]
[1745550274932,0.31586116,1748.3,1747.6,5.72213321]
[1745550275128,0.31586116,1748.3,1747.9,5.72092781]
[1745550275462,0.78730637,1748.0,1747.3,12.01199426]
[1745550275668,0.78730637,1748.0,1747.6,5.72192107]
[1745550275872,6.29830637,1748.0,1747.6,5.72192107]
[1745550276169,0.31586116,1747.9,1747.6,5.72192107]
[1745550276854,0.31586116,1747.9,1747.3,12.01199426]
[1745550277037,0.31586116,1747.9,1747.6,5.72191095]
[1745550277971,0.31586116,1747.9,1747.4,1.20119943]
[1745550278268,0.31586116,1747.9,1747.6,5.72191664]
[1745550278946,0.31586116,1747.9,1747.7,5.72175396]
[1745550279463,5.82686116,1748.0,1747.7,5.72155102]
[1745550279837,5.82686116,1748.0,1747.7,11.4431515]
[1745550280049,5.82686116,1748.0,1747.7,5.72155102]
[1745550280249,5.511,1748.0,1747.7,5.72155102]
[1745550281661,3.31586116,1748.1,1747.8,5.7212274]
[1745550282868,3.31586116,1748.1,1747.7,5.7215527]
[1745550283536,3.31586116,1748.1,1747.8,5.7214784]
[1745550284569,0.31586116,1748.1,1747.8,5.7214784]
[1745550284774,0.31586116,1748.1,1747.6,6.55452893]
[1745550284941,0.31586116,1748.1,1747.9,5.72100357]
[1745550285339,5.82686116,1748.2,1748.0,5.7206165]
[1745550285539,0.31586116,1748.2,1748.0,5.7206165]
[1745550285756,0.31586116,1748.2,1748.0,5.72057342]
[1745550286044,0.30039377,1748.2,1748.0,5.72057342]
[1745550286373,0.30039377,1748.2,1747.8,5.72124575]
[1745550286688,0.30039377,1748.2,1747.9,5.72112163]
[1745550287175,6.29830637,1748.3,1747.9,5.72112163]
[1745550287882,6.29830637,1748.3,1748.1,5.72047004]
[1745550287883,5.511,1748.3,1748.1,5.72047004]
[1745550288045,5.511,1748.3,1747.9,5.72096498]
[1745550288376,3.78730637,1748.2,1747.8,5.72130435]
[1745550288749,3.78730637,1748.2,1747.9,5.72099346]
[1745550289342,3.78730637,1748.2,1747.9,5.72094529]
[1745550290165,3.78730637,1748.2,1747.8,5.72125159]
[1745550290577,3.78730637,1748.2,1747.9,5.72112335]
[1745550290779,3.78730637,1748.2,1747.8,5.72129706]
[1745550291686,3.78730637,1748.2,1747.7,0.65545289]
[1745550291982,3.78730637,1748.2,1747.7,5.72167047]
[1745550292681,0.78730637,1747.8,1747.2,0.7645]
[1745550292880,0.78730637,1747.8,1747.0,1.39413061]
[1745550292881,0.78730637,1747.4,1747.0,1.39413061]
[1745550293183,0.78730637,1747.4,1746.8,6.48922038]
[1745550293353,3.0,1747.7,1746.8,6.48922038]
[1745550293354,0.78730637,1747.2,1746.8,0.7645]
[1745550293550,0.78730637,1747.2,1747.0,5.72394603]
[1745550294322,6.29230637,1747.4,1747.0,5.72394603]
[1745550294789,6.29230637,1747.4,1747.0,5.72384109]
[1745550295594,5.505,1747.4,1747.0,1.129976]
[1745550295755,3.0,1747.6,1747.2,5.72329087]
[1745550296096,3.78730637,1747.6,1747.2,5.72329087]
[1745550297199,3.78730637,1747.6,1747.1,6.51236324]
[1745550297200,3.78730637,1747.6,1747.3,5.72311438]
[1745550297356,3.78730637,1747.6,1747.2,5.72328848]
[1745550297889,3.78730637,1747.6,1747.2,5.7233]
[1745550298094,3.78730637,1747.6,1747.2,5.72331684]
[1745550298298,4.10308126,1747.6,1747.2,5.72331684]
[1745550298484,4.10308126,1747.6,1746.9,5.72431548]
[1745550298682,4.10308126,1747.6,1747.2,5.72321539]
[1745550298863,4.10308126,1747.6,1747.2,5.72325455]
[1745550299370,4.10308126,1747.6,1747.2,11.44652422]
[1745550299681,4.10308126,1747.6,1747.2,5.72325455]
[1745550299876,3.31577489,1747.6,1747.2,11.44645024]
[1745550300211,3.31577489,1747.6,1747.3,5.72306677]
[1745550300572,0.31577489,1747.6,1747.3,5.72306677]
[1745550300882,5.82177489,1747.7,1747.2,5.72338855]
[1745550301090,5.82177489,1747.7,1747.1,5.72354694]
[1745550301283,5.82177489,1747.7,1747.2,5.72339573]
[1745550302002,5.82177489,1747.7,1747.3,5.72299204]
[1745550302208,5.82177489,1747.7,1747.3,11.44587308]
[1745550302489,0.31577489,1747.7,1747.4,5.72276099]
[1745550302658,5.82177489,1747.7,1747.4,5.72276099]
[1745550303002,5.82177489,1747.7,1747.3,5.72290497]
[1745550303300,0.31577489,1747.7,1747.4,5.72270549]
[1745550303473,3.31577489,1747.7,1747.5,5.72241112]
[1745550303668,3.31577489,1747.7,1747.4,5.72258484]
[1745550304074,3.31577489,1747.7,1747.4,11.44514398]
[1745550304269,0.31577489,1747.7,1747.2,5.72335047]
[1745550304584,0.31577489,1747.7,1747.5,5.72219333]
[1745550304973,5.82177489,1747.8,1747.4,5.7226579]
[1745550305584,5.82177489,1747.8,1747.1,5.72372098]
[1745550305585,0.78730637,1747.7,1747.2,5.72318917]
[1745550305791,1.10308126,1747.7,1747.2,5.72318917]
[1745550307111,1.10308126,1747.7,1747.3,5.72297547]
[1745550307914,1.10308126,1747.7,1747.4,5.72273306]
[1745550308090,0.31577489,1747.7,1747.4,5.72273306]
[1745550308420,5.82177489,1747.8,1747.4,5.72273306]
[1745550309083,5.82177489,1747.8,1747.2,5.72337877]
[1745550309276,5.82177489,1747.8,1747.5,5.72222706]
[1745550309481,5.82177489,1747.8,1747.6,5.72198164]
[1745550309482,0.31577489,1747.8,1747.6,5.72198164]
[1745550310006,3.31577489,1747.9,1747.5,11.44445503]
[1745550310211,3.31577489,1747.9,1747.5,6.39686264]
[1745550310713,4.10308126,1747.9,1747.4,5.72260643]
[1745550311085,4.10308126,1747.9,1747.5,5.72239356]
[1745550311086,3.31577489,1747.9,1747.5,5.72239356]
[1745550311274,3.31577489,1747.9,1747.6,5.72209284]
[1745550311479,0.31577489,1747.9,1747.3,5.72308505]
[1745550311681,0.31577489,1747.9,1747.4,6.29497941]
[1745550311918,0.31577489,1747.9,1747.7,5.72157004]
[1745550312120,0.31577489,1747.9,1747.6,5.72196554]
[1745550312292,0.31577489,1747.9,1747.6,5.72190927]
[1745550312493,0.31577489,1747.9,1747.5,0.7573]
[1745550312494,0.31577489,1747.9,1747.7,5.72168437]
[1745550313109,0.31577489,1747.9,1747.7,11.44327167]
[1745550313315,0.31577489,1747.9,1747.8,6.52908715]
[1745550313930,5.82177489,1748.3,1747.8,6.52908715]
[1745550314238,5.82177489,1748.3,1747.9,5.72114246]
[1745550314439,5.82177489,1748.3,1748.0,5.72077795]
[1745550314938,0.31577489,1748.3,1748.1,5.72024921]
[1745550315107,0.31577489,1748.3,1748.2,5.72016931]
[1745550315829,5.506,1748.4,1748.2,5.72016931]
[1745550316025,0.31577489,1748.5,1748.3,5.71984213]
[1745550316228,0.31577489,1748.5,1748.4,5.71951498]
[1745550316601,22.68,1748.8,1748.5,5.7190516]
[1745550316804,17.174,1748.8,1748.6,5.71885557]
[1745550317003,4.0,1748.7,1748.6,5.71885557]
[1745550317456,0.4038645,1748.9,1748.5,5.71900062]
[1745550317943,0.4038645,1748.9,1748.6,5.71860217]
[1745550318325,0.4038645,1748.9,1748.5,6.93843268]
[1745550318497,0.4038645,1748.9,1748.6,5.7188582]
[1745550318833,0.4038645,1748.9,1748.7,5.71833842]
[1745550319014,0.4038645,1748.9,1748.8,5.71820677]
[1745550319217,0.4038645,1748.9,1748.7,5.71833842]
[1745550319645,0.4038645,1748.9,1748.6,5.71859322]
[1745550319804,0.4038645,1748.9,1748.6,6.41239267]
[1745550320503,0.4038645,1748.9,1748.7,5.71850728]
[1745550320711,0.4038645,1748.9,1748.3,6.86365961]
[1745550320712,1.19117087,1748.9,1748.3,6.86365961]
[1745550320925,0.78730637,1748.7,1748.3,12.5832425]
[1745550321120,0.78730637,1748.7,1748.4,6.97783781]
[1745550321613,0.78730637,1748.7,1748.4,5.71928321]
[1745550321844,1.19117087,1748.9,1748.4,5.71928321]
[1745550322035,1.19117087,1748.9,1748.5,5.71911432]
[1745550322313,1.19117087,1748.9,1748.4,5.71933403]
[1745550323551,0.4038645,1748.9,1748.4,5.71933403]
[1745550323715,1.19117087,1748.9,1748.4,5.71933403]
[1745550324146,1.19117087,1748.9,1748.5,5.71917043]
[1745550324545,1.19117087,1748.9,1748.6,5.71883902]
[1745550324759,0.4038645,1748.9,1748.5,5.71899188]
[1745550325755,0.4038645,1748.9,1748.5,5.71893894]
[1745550325913,0.4038645,1748.9,1748.6,5.71884196]
[1745550326452,0.4038645,1748.9,1748.4,6.86325886]
[1745550326453,0.78730637,1748.8,1748.4,6.86325886]
[1745550326751,0.78730637,1748.8,1748.4,6.86320406]
[1745550326958,0.78730637,1748.8,1748.5,6.40546891]
[1745550328117,0.78730637,1748.8,1748.6,5.7188446]
[1745550328658,0.4038645,1748.9,1748.6,5.7188446]
[1745550328960,0.4038645,1748.9,1748.5,6.40528656]
[1745550329157,0.4038645,1748.9,1748.5,12.12425546]
[1745550329455,0.4038645,1748.9,1748.6,6.93128261]
[1745550329927,0.4038645,1748.9,1748.6,6.93110809]
[1745550330127,0.4038645,1748.9,1748.7,5.71851918]
[1745550330330,0.4038645,1748.9,1748.8,5.71820677]
[1745550330523,0.4038645,1748.9,1748.7,5.71834293]
[1745550330722,0.4038645,1748.9,1748.8,0.57183429]
[1745550331553,0.4038645,1748.9,1748.8,0.80247977]
[1745550331757,0.4038645,1748.9,1748.8,0.23064548]
[1745550332056,0.4038645,1748.9,1748.7,5.718475]
[1745550332364,0.4038645,1748.9,1748.8,0.21289201]
[1745550332736,0.4038645,1748.9,1748.8,5.93109878]
[1745550332932,0.4038645,1748.9,1748.8,7.0960397]
[1745550333150,0.4038645,1748.9,1748.8,1.37783293]
[1745550333524,0.4038645,1748.9,1748.8,0.21289201]
[1745550334231,0.4038645,1748.9,1748.6,5.71860473]
[1745550334439,0.4038645,1748.9,1748.8,0.21289201]
[1745550334658,1.19117087,1748.9,1748.7,0.21337793]
[1745550334823,1.19117087,1748.9,1748.1,6.48055075]
[1745550335031,1.19117087,1748.9,1748.8,0.2142601]
[1745550335344,1.19117087,1748.9,1748.8,0.19357723]
[1745550335536,1.19117087,1748.9,1748.3,5.71980323]
[1745550335730,1.19117087,1748.9,1748.4,0.19533864]
[1745550335935,1.19117087,1748.9,1748.3,5.71961326]
[1745550336151,1.19117087,1748.9,1748.4,5.91621298]
[1745550336152,0.78730637,1748.7,1748.4,5.91621298]
[1745550336352,6.28230637,1748.7,1748.5,5.71916366]
[1745550336550,6.28230637,1748.7,1748.6,0.19591904]
[1745550336750,6.28230637,1748.7,1748.4,5.71933536]
[1745550336949,6.28230637,1748.7,1748.5,0.19640515]
[1745550337968,3.0,1748.6,1748.5,0.19640515]
[1745550338141,3.0,1748.6,1748.2,5.72014126]
[1745550338455,0.78730637,1748.5,1748.3,0.19737755]
[1745550338670,0.78730637,1748.5,1748.0,5.72067239]
[1745550338867,0.78730637,1748.5,1748.4,0.19689132]
[1745550339378,3.3154129,1748.6,1748.1,11.44072731]
[1745550339379,4.10271927,1748.6,1748.1,11.44072731]
[1745550339557,4.10271927,1748.6,1748.4,0.19689132]
[1745550339759,0.3154129,1748.6,1748.4,5.71938455]
[1745550340070,0.3154129,1748.6,1748.5,5.91795942]
[1745550340955,3.0,1748.8,1748.5,5.91795942]
[1745550341157,3.0,1748.8,1748.6,5.71885898]
[1745550341356,3.0,1748.8,1748.7,0.19624778]
[1745550341555,0.4038645,1748.9,1748.7,0.19624778]
[1745550341755,0.4038645,1748.9,1748.7,6.50628951]
[1745550343265,0.4038645,1748.9,1748.8,5.71820677]
[1745550343430,0.4038645,1748.9,1748.8,5.91428259]
[1745550343631,0.4038645,1748.9,1748.8,0.19607582]
[1745550343846,0.4038645,1748.9,1748.8,5.91428259]
[1745550344033,0.4038645,1748.9,1748.8,7.13669739]
[1745550345472,0.4038645,1748.9,1748.8,1.41849062]
[1745550345676,0.4038645,1748.9,1748.8,0.19607582]
[1745550347471,0.4038645,1748.9,1748.8,5.91428259]
[1745550347669,0.4038645,1748.9,1748.8,0.19607582]
[1745550347873,0.4038645,1748.9,1748.6,5.71862741]
[1745550348036,0.4038645,1748.9,1748.8,0.19572482]
[1745550348371,0.4038645,1748.9,1748.8,0.19591981]
[1745550348672,0.4038645,1748.9,1748.6,5.71862741]
[1745550348969,0.4038645,1748.9,1748.7,0.19640583]
[1745550349753,0.78730637,1748.8,1748.5,6.5243178]
[1745550350078,0.78730637,1748.8,1748.6,0.19689189]
[1745550350382,6.28230637,1748.8,1748.7,0.19640583]
[1745550350699,6.28230637,1748.8,1748.4,5.71945702]
[1745550351168,6.28230637,1748.8,1748.5,0.19737802]
[1745550351169,0.3161674,1748.7,1748.5,0.19737802]
[1745550351363,0.3161674,1748.7,1748.5,5.91650404]
[1745550351905,0.3161674,1748.7,1748.5,0.19737802]
[1745550352994,0.3161674,1748.7,1748.5,5.9164456]
[1745550355081,0.3161674,1748.7,1748.5,0.19737802]
[1745550355309,0.3161674,1748.7,1748.5,5.91655961]
[1745550357301,0.3161674,1748.7,1748.5,5.91643005]
[1745550359112,0.3161674,1748.7,1748.5,5.91641417]
[1745550360815,0.3161674,1748.7,1748.5,0.19737802]
[1745550360990,0.3161674,1748.7,1748.3,6.52217026]
[1745550360991,0.3161674,1748.7,1748.4,5.71928877]
[1745550361190,0.3161674,1748.7,1748.6,0.19595556]
[1745550361404,0.3161674,1748.7,1748.5,5.71917326]
[1745550361580,0.3161674,1748.7,1748.6,0.19595556]
[1745550361980,0.3161674,1748.7,1748.4,5.71926722]
[1745550362193,0.3161674,1748.7,1748.5,5.91558802]
[1745550362410,0.3161674,1748.7,1748.6,5.7188608]
[1745550362716,0.3161674,1748.7,1748.5,11.63439681]
[1745550362911,0.3161674,1748.7,1748.6,5.91481636]
[1745550363219,0.3161674,1748.7,1748.6,6.68121636]
[1745550363398,0.7200319,1748.9,1748.8,5.71820677]
[1745550363785,0.7200319,1748.9,1748.8,0.19529544]
[1745550366218,0.4038645,1748.9,1748.8,0.19529544]
[1745550366784,0.4038645,1748.9,1748.8,5.91350221]
[1745550367122,0.4038645,1748.9,1748.8,0.19529544]
[1745550367421,0.4038645,1748.9,1748.6,13.44362622]
[1745550367621,0.4038645,1748.9,1748.8,0.19529544]
[1745550367821,0.4038645,1748.9,1748.6,7.72500467]
[1745550368024,0.4038645,1748.9,1748.8,0.19529544]
[1745550368236,0.4038645,1748.9,1748.6,13.44365016]
[1745550368527,0.4038645,1748.9,1748.8,0.19529544]